Cogmind - Beta 13 @@@ ROGUE MODE // 2024.04.19 @ 01:15:25 Player: cptwinky Result: Destroyed by Shrapnel Trap Performance ------------- Evolutions (0) 0 Regions Visited (2) 400 Robots Destroyed (46) 230 Value Destroyed (1183) 1183 Prototype IDs (10) 200 Alien Tech Used (0) 0 Bonus (0) 0 TOTAL SCORE: 2013 Bonus ------- None Cogmind --------- Core Integrity 0/250 Matter 300/300 Energy 246/250 System Corruption 0% Temperature Cool (2) Movement Treading (240) Ox1 Location -10/Subcaves Parts ------- > --- POWER (1) -------- Ion Engine > --- PROPULSION (2) --- Light Treads Light Treads > --- UTILITY (2) ------ High-capacity Storage Unit Light Armor Plating > --- WEAPON (2) ------- Beam Cannon Beam Cannon > --- INVENTORY (20) --- Meta Core Light Treads Aluminum Leg Subdweller Monowheel Subdweller Monowheel Large Storage Unit Large Matter Pod (150) Seismic Detector Light Armor Plating Makeshift Light Armor Plating Hacking Suite Makeshift System Shield Heavy Riot Gun Subdweller Beam Cannon Subdweller Machine Gun Battle Cannon Subdweller Shrapnel Launcher Mining Laser Peak State ------------ > --- POWER ------------ Ion Engine > --- PROPULSION ------- Light Treads Light Treads > --- UTILITY ---------- High-capacity Storage Unit Light Armor Plating > --- WEAPON ----------- Heavy Riot Gun Battle Cannon > --- INVENTORY -------- Aluminum Leg Subdweller Monowheel Subdweller Monowheel Large Storage Unit Large Matter Pod Seismic Detector Light Armor Plating Light Armor Plating Light Armor Plating Makeshift Light Armor Plating Hacking Suite Beam Cannon Beam Cannon Subdweller Machine Gun Battle Cannon Subdweller Shrapnel Launcher Mining Laser [Rating: 13] Favorites ----------- Power Ion Engine Engine Ion Engine Propulsion Light Treads Treads Light Treads Leg Aluminum Leg Utility High-capacity Storage Unit Storage High-capacity Storage Unit Protection Light Armor Plating Weapon Beam Cannon Energy Gun Heavy Riot Gun Energy Cannon Beam Cannon Ballistic Gun Assault Rifle Ballistic Cannon Battle Cannon Launcher Subdweller Shrapnel Launcher Special Weapon Mining Laser Build | -11 -10 -10 ------- Run | Yrd Mat Sub Slots Evolved . | . . . Power . | . . . Propulsion . | . . . Utility . | . . . Weapon . | . . . Parts Attached 25 | 2 5 18 Power 1 | . . 1 Engine 1 | . . 1 Core . | . . . Reactor . | . . . Propulsion 5 | 2 1 2 Treads 5 | 2 1 2 Leg . | . . . Wheel . | . . . Hover . | . . . Flight . | . . . Utility 5 | . 3 2 Device . | . . . Storage 1 | . 1 . Processor . | . . . Hackware . | . . . Protection 4 | . 2 2 Artifact . | . . . Weapon 14 | . 1 13 Energy Gun 1 | . . 1 Energy Cannon 7 | . 1 6 Ballistic Gun 1 | . . 1 Ballistic Cannon 1 | . . 1 Launcher 3 | . . 3 Special Weapon 1 | . . 1 Impact Weapon . | . . . Slashing Weapon . | . . . Piercing Weapon . | . . . Special Melee Weapon . | . . . Unidentified Prototypes . | . . . Parts Lost 6 | . . 6 Power 1 | . . 1 Propulsion 2 | . . 2 Utility 2 | . . 2 Weapon 1 | . . 1 Highest Loss Streak 2 | . . 2 To Critical Strikes . | . . . Average Slot Usage (%) 99 | . 99 99 Engine 14 | . 14 14 Treads 27 | . 27 28 Storage 14 | . 14 14 Protection 13 | . 13 13 Energy Cannon 14 | . 12 16 Ballistic Gun 5 | . 15 . Ballistic Cannon 6 | . . 9 Naked Turns . | . . . Heaviest Build 54 | 13 53 54 Greatest Support 40 | 40 40 40 Greatest Overweight (x) 1 | . 1 1 Average Overweight (x) . | . . 1 Largest Inventory Capacity 20 | 8 20 20 Average Capacity 19 | 8 17 20 Most Carried 20 | 6 17 20 Average Carried 15 | 6 12 17 Final Capacity 20 | 8 20 20 Final Carried 18 | 6 17 18 Class Distribution -------------------- 100% | Mutant Dominant Class ---------------- Mutant | -10/Materials Mutant | -10/Subcaves Resources | -11 -10 -10 ----------- Run | Yrd Mat Sub Matter Collected 1061 | 206 334 521 Remotely . | . . . Salvage Created 1191 | . 705 486 Parts 93 | . 55 38 Haulers Intercepted 2 | . 2 . Recyclers Shooed . | . . . Parts Field Recycled . | . . . Retrieved Matter . | . . . Parts Self-Destructed 20 | . . 20 Prevented 1 | . . 1 Kills | -11 -10 -10 ------- Run | Yrd Mat Sub Combat Hostiles Destroyed 38 | . 16 22 Guns 6 | . 6 . Cannons 27 | . 10 17 AOE 5 | . . 5 Classes Destroyed 10 | . 7 3 Tunneler 1 | . 1 . Hauler 2 | . 2 . Recycler 1 | . 1 . Operator 2 | . 2 . Turret 1 | . . 1 Watcher 1 | . 1 . Swarmer 13 | . 6 7 Grunt 10 | . 10 . Sentry 1 | . . 1 Subdweller 14 | . . 14 Best Kill Streak 4 | . 3 4 Combat Bots Only 4 | . 3 4 Max Kills in Single Turn 3 | . 2 3 Gunslinging . | . . . Exploded 3 | . . 3 Melee . | . . . Uniques/NPCs Destroyed . | . . . Combat | -11 -10 -10 -------- Run | Yrd Mat Sub Hostile Shots Fired 133 | . 46 87 Missed 32 | . 8 24 Damage Taken 1631 | . 379 1252 Core 259 | . 65 194 Absorbed by Shields . | . . . Redirected to Shielding 14 | . 14 . Regen/Repaired (Parts) 109 | . 109 . Core Remaining (%) 100 | 100 . . Volleys Fired 123 | . 46 77 Largest 2 | . 2 2 Hottest 120 | . 80 120 Shots Fired 219 | . 91 128 Gun 53 | . 48 5 Cannon 146 | . 43 103 Launcher 6 | . . 6 Special 14 | . . 14 Kinetic 103 | . 48 55 Thermal 116 | . 43 73 Explosive . | . . . Electromagnetic . | . . . Robot Hit Streak 23 | . 9 23 Robot Miss Streak 3 | . 3 2 Penetration Max . | . . . Secondary Targets . | . . . Shots Hit Robots 136 | . 59 77 Core Hits 65 | . 32 33 Critical Kills . | . . . Critical Parts Destroyed 1 | . 1 . Critical Strikes 3 | . 1 2 Destroy 1 | . 1 . Blast 2 | . . 2 Melee Attacks . | . . . Impact . | . . . Slashing . | . . . Piercing . | . . . Sneak Attacks . | . . . Combat Hostiles . | . . . Follow-up Attacks . | . . . Damage Inflicted 2882 | . 942 1940 Guns 494 | . 424 70 Cannons 1839 | . 502 1337 Explosions 533 | . . 533 Melee . | . . . Ramming 16 | . 16 . Kinetic 1711 | . 424 1287 Thermal 1155 | . 502 653 Explosive . | . . . Electromagnetic . | . . . Impact . | . . . Slashing . | . . . Piercing . | . . . Highest Corruption . | . . . Average Corruption . | . . . Corruption Purged . | . . . Corruption Blocked . | . . . Overload Shots . | . . . Overflow Damage 22 | . 7 15 Projectiles 12 | . 7 5 Explosions 10 | . . 10 Melee . | . . . Knockbacks 8 | . . 8 Impact . | . . . Kinetic 8 | . . 8 Secondary . | . . . Self-Inflicted Damage . | . . . Shots . | . . . Rammed 2 | . 2 . Targets Rammed 2 | . 2 . Kicked . | . . . Crushed . | . . . Highest Temperature 102 | . 102 69 Average Temperature 31 | . 34 19 Received Heat Transfer 357 | . 129 228 Siege Activations . | . . . Robots Corrupted . | . . . Combat Hostiles . | . . . Parts Fried . | . . . Impact Corruptions . | . . . Robots Melted . | . . . Combat Hostiles . | . . . Parts Melted 1 | . . 1 Heat Transferred 2405 | . 1036 1369 Parts Sabotaged . | . . . Parts Stolen . | . . . Parts Stripped . | . . . Power Chain Reactions . | . . . Alert | -11 -10 -10 ------- Run | Yrd Mat Sub Peak Influence 189 | . 189 . Initial . | . . . Average 85 | . 86 . Maximum Alert Level . | . . . Low Security (%) 100 | 100 100 . Level 1 . | . . . Level 2 . | . . . Level 3 . | . . . Level 4 . | . . . Level 5 . | . . . High Security . | . . . Max Security . | . . . Squads Dispatched 4 | . 4 . Investigation 1 | . 1 . Extermination . | . . . Reinforcement 3 | . 3 . Assault . | . . . Garrison . | . . . Intercept . | . . . Searches Triggered . | . . . Construction Impeded . | . . . Haulers Reinforced . | . . . Active Scanning Responses . | . . . Cargo Convoy Interrupts . | . . . Stealth | -11 -10 -10 --------- Run | Yrd Mat Sub Distress Signals 2 | . 2 . Communications Jammed . | . . . Distress Signals . | . . . Times Spotted 69 | . 32 37 Peak Tracking Total 5 | . 3 5 Tactical Retreats 4 | . . 4 Traps | -11 -10 -10 ------- Run | Yrd Mat Sub Traps Triggered 5 | . 1 4 Indirectly . | . . . Trap Hack Attempts . | . . . Triggered . | . . . Disarmed . | . . . Reprogrammed . | . . . Reused 1 | . . 1 Traps Extracted . | . . . Installed 1 | . . 1 Triggered . | . . . Most Traps Carried 1 | . . 1 Machines | -11 -10 -10 ---------- Run | Yrd Mat Sub Machines Disabled 3 | . . 3 Max in Single Turn 1 | . . 1 Machines Repaired . | . . . Machines Dismantled . | . . . Machines Sabotaged . | . . . Overloaded Fab Kills . | . . . Hacking | -11 -10 -10 --------- Run | Yrd Mat Sub Machines Accessed 7 | . 5 2 Terminals 3 | . 3 . Fabricators . | . . . Repair Stations 1 | . 1 . Recycling Units 1 | . 1 . Scanalyzers . | . . . Garrison Access . | . . . Total Hacks 23 | . 13 10 Successful 15 | . 5 10 Failed 7 | . 7 . Catastrophic 1 | . 1 . Database Lockouts 1 | . 1 . Manual 10 | . 10 . Terminals 9 | . 9 . Fabricators . | . . . Repair Stations 3 | . 3 . Recycling Units 1 | . 1 . Scanalyzers . | . . . Garrison Access . | . . . Terminal Hacks 12 | . 2 10 Record 9 | . . 9 Robot Analysis 2 | . 2 . Derelict Proto ID Bank 1 | . . 1 Fabricator Hacks . | . . . Repair Station Hacks 2 | . 2 . Scan Component 1 | . 1 . Repair 1 | . 1 . Recycling Unit Hacks . | . . . Scanalyzer . | . . . Garrison Access Hacks . | . . . Unauthorized Hacks 1 | . 1 . Terminals . | . . . Fabricators . | . . . Repair Stations . | . . . Recycling Units 1 | . 1 . Reject 1 | . 1 . Scanalyzers . | . . . Garrison Access . | . . . Data Cores Recovered . | . . . Used . | . . . Hacking Detections 4 | . 4 . Full Trace Events . | . . . Feedback Events . | . . . Feedback Blocked . | . . . Robot Schematics Acquired . | . . . Robots Built . | . . . Authchips . | . . . Time . | . . . Total Robot Build Rating . | . . . Part Schematics Acquired . | . . . Parts Built . | . . . Authchips . | . . . Time . | . . . Total Part Build Rating . | . . . Parts Repaired 1 | . 1 . Time 26 | . 26 . Parts Recycled . | . . . Recycled Matter . | . . . Retrieved Matter . | . . . Retrieved Components . | . . . Parts Scanalyzed . | . . . Part Schematics Acquired . | . . . Parts Damaged . | . . . Bothacking | -11 -10 -10 ------------ Run | Yrd Mat Sub Used RIF Installer . | . . . Robots Hacked . | . . . Non-combat . | . . . Combat . | . . . Robot Hacks Applied . | . . . Relay Couplers Released . | . . . Fabnet Peak Effective % . | . . . Robots Rewired . | . . . Allies Hacked . | . . . Hacks Repelled . | . . . Allies | -11 -10 -10 -------- Run | Yrd Mat Sub Total Allies . | . . . Largest Group . | . . . Highest-Rated Group . | . . . Highest-Rated Ally . | . . . Total Orders . | . . . Ally Attacks . | . . . Total Damage . | . . . Kills . | . . . Allies Corrupted . | . . . Allies Melted . | . . . Intel | -11 -10 -10 ------- Run | Yrd Mat Sub Robot Analysis Total 2 | . 2 . Derelict Logs Recovered 1 | . . 1 Drone Launches . | . . . Drone Recoveries . | . . . Exploration | -11 -10 -10 ------------- Run | Yrd Mat Sub Turns Passed 4953 | 13 1613 3327 Spaces Moved 1886 | 7 634 1245 Core . | . . . Treads 1886 | 7 634 1245 Legs . | . . . Wheels . | . . . Hover . | . . . Flight . | . . . Fastest Speed 160 | 160 160 240 Average Speed 233 | 160 220 240 Slowest Speed 240 | 160 240 240 Overloaded Moves . | . . . Propulsion Burnouts . | . . . Robots Hopped . | . . . Cave-ins Triggered . | . . . Exploration Rate (%) 56 | 2 95 73 Regions Visited 2 Branch Regions 1 Pre-discovered Areas . | . . . Known Exits Taken . | . . . Unknown Exits Taken 2 | 1 1 . Scrap Searched 14 | . . 14 Spaces Dug . | . . . Terrain Destroyed 70 | . . 70 Melee . | . . . Projectile 1 | . . 1 AOE 69 | . . 69 Terrain Rammed . | . . . Walls Destroyed . | . . . Machines Disabled . | . . . Actions | -11 -10 -10 --------- Run | Yrd Mat Sub Total 2193 | 8 759 1426 Wait 112 | . 52 60 Move 1884 | 6 633 1245 Hop . | . . . Pick Up 29 | . 14 15 Fast Attach 5 | . 4 1 Attach 6 | . . 6 Detach 2 | . 1 1 Swap 14 | 2 1 11 Drop 15 | . 6 9 Fire 123 | . 46 77 Melee . | . . . Ram . | . . . Kick . | . . . Crush 2 | . 2 . Escape Stasis . | . . . Rewire . | . . . Trap 1 | . . 1 Miscellaneous . | . . . Route ------- -11/Scrapyard -10/Materials (discovered 6 exits: [*Mat x3] / [*Min x2] / *Sub) -10/Subcaves (discovered 2 exits: [*Mat] / [*Rec]) History --------- Turn | Location | Event 4 | -11/Scrapyard | Discovered new exit (range 3) 14 | -11/Scrapyard | Entered Materials 306 | -10/Materials | Build established: Mutant 721 | -10/Materials | Discovered new exit (range 8) 738 | -10/Materials | Central database locked down 1068 | -10/Materials | Discovered new exit (range 12) 1160 | -10/Materials | Discovered new exit (range 10) 1292 | -10/Materials | Discovered new exit (range 6) 1364 | -10/Materials | Discovered new exit (range 16) 1438 | -10/Materials | Repaired Lgt. Treads 1582 | -10/Materials | Discovered new exit (range 10) 1627 | -10/Materials | Entered Subcaves 1632 | -10/Subcaves | Learned Materials emergency access door positions 2024 | -10/Subcaves | Shifting Twisted Machinery released Hvy. Riot Gun 2030 | -10/Subcaves | Shifting Twisted Machinery released Sub. Shrapnel Launcher 2504 | -10/Subcaves | A swath of the cavern ceiling suddenly collapsed 2699 | -10/Subcaves | Disturbed a concealed Subdweller 2700 | -10/Subcaves | Core integrity fell below 50% 3227 | -10/Subcaves | Visited 4L-MR0's lab 3250 | -10/Subcaves | Found Meta Core 3808 | -10/Subcaves | A swath of the cavern ceiling suddenly collapsed 3940 | -10/Subcaves | Discovered new exit (range 13) 4168 | -10/Subcaves | Shifting Twisted Machinery released Mak. Shrapnel Gun 4171 | -10/Subcaves | Shifting Twisted Machinery released Sub. Laser 4254 | -10/Subcaves | Core integrity fell below 20% 4256 | -10/Subcaves | Discovered new exit (range 13) 4535 | -10/Subcaves | Disturbed a concealed Subdweller 4840 | -10/Subcaves | Visited Clippyterm 4954 | -10/Subcaves | Destroyed by Shrapnel Trap Last Messages --------------- 04557_ Found 13 Matter. 04558_ Acquired 13 matter. 04565_ Acquired 11 matter. 04596_ Acquired Sub. Beam Cannon. 04738_ Subatomizers dissect the Battle Rifle, destroying it. 04833_ A thin wall crumbles away, revealing a door. 04840_ The door opens automatically. 04847_ Connecting with Clippyterm... >>Record "Clippyterm" Welcome to Clippyterm v0.53, my misguided attempt to resurrect an ancient AI. I give up. There must be something fundamentally wrong with the algorithm, because no matter how much data I collect to feed it, half the time it still manages to suggest unhelpful sample queries and responses. --DD-NU8 04922_ JM-QU0(u) tweaks Twisted Machinery. 04954_ Triggered Shrapnel Trap. 04954_ An expanding cloud of shrapnel blasts out in all directions. Map ----- +----------------------------------------------------+ | ????????????????????????????????????????????????# | | ????????????????????????????????????????????????# | | ????????????????????????????????????????????????# | | ??????????????????????????##????????????????????# | | ?????????????????????????## ???????????????????# | | ????????????????????????## ??????????????????## | | ????????????????????????# ??????????????????# | | ???????????????????????## ##????????????????# | | ??????????????????????## ##???????????????# | | ??????????????????????? "##??????????????# | | ???????????????????????? """???????????????# | | ????????????????????????? " ???????????????### | | ?????????????????????"???? #?????????????????? | | ????????????????????""" ???# #?????????????????? | | ???????????????###??# ???##""#?????????????????? | | ???????????????# #?# u???#" ##????????????????? | | ???????????????# ## "???## #????????????????? | | ???????????????# ^ ^ #??## #????????????????? | | ???????????????# ??# #????????????????? | | ????????????????# #### #??????????####### | | ?????????????????# # # #??????????#"""""# | | ???????????????### ##??????????#""X""# | | ???????????????# ^ #??????????#" "# | | ?????????????????### ## # ##??????????### ### | | ???????????????????# ##???????####### ### | | ???????????????????# @ ^ ######### # # # | | ??????????????????# ### # # | | ??????????????????# ???## | | ?????????????????# ?????# ### ###### | | ????????????????? ??????###?###????# | | ?????????????????????????????????????# | | ?????????????????????????????????????## | | ??????????????????????????????????????# ## | | ????????????????????????????????????? ## ## | | ??????????????????????????????????? ### ## | | ??????????????????????????????????? ###?####### | | ???????????????????????????????????## ??????????# | | ????????????????????????????????????# ???######## | | ????????????????????????????????????# #??## | | ????????????????????????????????????##??## | | ???????????????????????????????????????## | | ??????????????????????????????????????## ## | | ?????????????????????????????????? ### ## | | ??????????????????????????????????? | | ??????????????????????????????????? | | ?????????????????????????????????????# | | ??????????????????????????????????????# | | ??????????????????????????????????????????# | | ????????????????????????????????# ???????# | | ???????????????????????????????# #???### | +----------------------------------------------------+ Best States ------------- Heat Dissipation 25 Energy Generation 10 Energy Capacity 250 Matter Stores 300 Matter Capacity 300 Sight Range 16 Terrain Scan Density 10 Armor Coverage 150 Core Shielding 20 Evasion (%) 40 Recoil Reduction 2 Item Schematics ----------------- None Robot Schematics ------------------ None Fabricated ------------ Nothing Alien Tech Used ----------------- None Achievements -------------- None Challenges ------------ None Game ------ Seed MakeshiftMolecularThruster Manual? 0 Play Time 00:16:45 Cumulative 1530.7 hours Start 2024.04.19 @ 01:00:47 End 2024.04.19 @ 01:15:25 Sessions 1 Manual Loads 0 Difficulty Rogue Special Mode None Game No. 1057 Rogue 1053 Adventurer 4 Explorer 0 Win Type - Total 191 Types 139/11/14/9/2/1/3/8/4 Lore% 95 Gallery% 99 Achievement% 98 Wizard Run 0 Options --------- Layout 2 ASCII 0 Keyboard 1 Movement Vi Keybinds 0 Fullscreen 0 Font 24/Terminus Map View 59x48 Zoom Use 0% Tactical HUD 1 Map Filters NONE Filters NONE Steam 1 RUN: 494d29f7-e492-4598-a2ba-5f8231845dc0